Cogmind - Beta 13 @@@ ROGUE MODE // 2024.04.09 @ 15:31:43 Player: JunkerBernd Result: Self-destructed Performance ------------- Evolutions (1) 500 Regions Visited (3) 600 Robots Destroyed (49) 245 Value Destroyed (833) 833 Prototype IDs (3) 60 Alien Tech Used (0) 0 Bonus (-155) -155 TOTAL SCORE: 2083 Bonus ------- High Alert Combat Kills 8 Friendly Fire -163 Cogmind --------- Core Integrity 375/400 Matter 302/400 Energy 250/250 System Corruption 1% Temperature Cool (0) Movement Treading (160) Location -9/Materials Parts ------- > --- POWER (1) -------- Ion Engine > --- PROPULSION (3) --- Light Treads Light Treads Light Treads > --- UTILITY (2) ------ Medium Storage Unit Medium Matter Pod > --- WEAPON (3) ------- Assault Rifle Assault Rifle Heavy Assault Rifle > --- INVENTORY (10) --- Light Treads Light Treads Medium Matter Pod (100) Targeting Computer Field Recycling Unit (0) Assault Rifle EMP Blaster Peak State ------------ > --- POWER ------------ Light Angular Momentum Engine > --- PROPULSION ------- Light Treads Light Treads Light Treads > --- UTILITY ---------- Medium Storage Unit Medium Matter Pod > --- WEAPON ----------- Assault Rifle Heavy Assault Rifle Grenade Launcher > --- INVENTORY -------- Ion Engine Light Treads Light Treads Light Treads Medium Matter Pod Targeting Computer Assault Rifle Assault Rifle [Rating: 14] Favorites ----------- Power Ion Engine Engine Ion Engine Propulsion Light Treads Treads Light Treads Utility Medium Matter Pod Storage Medium Matter Pod Weapon Grenade Launcher Energy Gun Small Laser Ballistic Gun Assault Rifle Launcher Grenade Launcher Build | -11 -10 -10 -9 ------- Run | Yrd Mat Min Mat Slots Evolved 2 | . . . 2 Power . | . . . . Propulsion 1 | . . . 1 Utility . | . . . . Weapon 1 | . . . 1 Parts Attached 20 | 6 5 2 7 Power 3 | 1 . 1 1 Engine 3 | 1 . 1 1 Core . | . . . . Reactor . | . . . . Propulsion 5 | 2 1 . 2 Treads 5 | 2 1 . 2 Leg . | . . . . Wheel . | . . . . Hover . | . . . . Flight . | . . . . Utility 3 | 1 2 . . Device . | . . . . Storage 3 | 1 2 . . Processor . | . . . . Hackware . | . . . . Protection . | . . . . Artifact . | . . . . Weapon 9 | 2 2 1 4 Energy Gun 1 | 1 . . . Energy Cannon . | . . . . Ballistic Gun 5 | 1 . 1 3 Ballistic Cannon . | . . . . Launcher 3 | . 2 . 1 Special Weapon . | . . . . Impact Weapon . | . . . . Slashing Weapon . | . . . . Piercing Weapon . | . . . . Special Melee Weapon . | . . . . Unidentified Prototypes . | . . . . Parts Lost 2 | . . . 2 Power 1 | . . . 1 Propulsion . | . . . . Utility . | . . . . Weapon 1 | . . . 1 Highest Loss Streak 1 | . . . 1 To Critical Strikes . | . . . . Average Slot Usage (%) 98 | . 97 100 99 Engine 13 | . 14 14 10 Treads 29 | . 28 28 33 Storage 25 | . 26 28 22 Ballistic Gun 15 | . 14 14 19 Launcher 13 | . 13 14 13 Naked Turns . | . . . . Heaviest Build 29 | 13 22 27 29 Greatest Support 60 | 40 40 40 60 Greatest Overweight (x) . | . . . . Average Overweight (x) . | . . . . Largest Inventory Capacity 10 | 8 10 10 10 Average Capacity 9 | 7 9 10 10 Most Carried 10 | 6 10 10 9 Average Carried 8 | 5 9 9 7 Final Capacity 10 | 8 10 10 10 Final Carried 10 | 6 10 10 7 Class Distribution -------------------- 71% | Mutant 28% | Bomber Dominant Class ---------------- Mutant | -10/Materials Mutant | -10/Mines Bomber | -9/Materials Resources | -11 -10 -10 -9 ----------- Run | Yrd Mat Min Mat Matter Collected 1040 | 256 330 204 250 Remotely . | . . . . Salvage Created 838 | 13 422 106 297 Parts 70 | 1 43 7 19 Haulers Intercepted 1 | . 1 . . Recyclers Shooed . | . . . . Parts Field Recycled . | . . . . Retrieved Matter . | . . . . Parts Self-Destructed . | . . . . Prevented . | . . . . Kills | -11 -10 -10 -9 ------- Run | Yrd Mat Min Mat Combat Hostiles Destroyed 26 | . 13 2 11 Guns 4 | . 1 1 2 AOE 22 | . 12 1 9 Classes Destroyed 10 | 1 7 . 2 Worker 8 | 2 6 . . Builder 4 | . 4 . . Hauler 1 | . 1 . . Recycler 2 | . 2 . . Operator 3 | . 3 . . Watcher 4 | . 2 . 2 Swarmer 13 | . 9 . 4 Grunt 11 | . 4 2 5 Duelist 1 | . . . 1 Sentry 1 | . . . 1 Thug 1 | . . 1 . Best Kill Streak 6 | 1 5 2 6 Combat Bots Only 6 | . 3 2 6 Max Kills in Single Turn 3 | 1 3 1 3 Gunslinging . | . . . . Exploded 3 | . 3 1 3 Melee . | . . . . Uniques/NPCs Destroyed . | . . . . Combat | -11 -10 -10 -9 -------- Run | Yrd Mat Min Mat Hostile Shots Fired 70 | . 23 12 35 Missed 25 | . 9 5 11 Damage Taken 776 | . 186 107 483 Core 68 | . 27 16 25 Absorbed by Shields . | . . . . Regen/Repaired (Parts) 29 | . 29 . . Core Remaining (%) 91 | 100 . 82 . Volleys Fired 55 | . 24 7 24 Largest 3 | . 2 2 3 Hottest 86 | . 60 53 86 Shots Fired 122 | . 46 14 62 Gun 72 | . 25 7 40 Cannon . | . . . . Launcher 50 | . 21 7 22 Special . | . . . . Kinetic 71 | . 24 7 40 Thermal 1 | . 1 . . Explosive 42 | . 21 7 14 Electromagnetic 8 | . . . 8 Robot Hit Streak 7 | . 7 3 6 Robot Miss Streak 4 | . 3 1 4 Penetration Max . | . . . . Secondary Targets . | . . . . Shots Hit Robots 66 | . 24 6 36 Core Hits 71 | 2 43 3 23 Critical Kills . | . . . . Critical Parts Destroyed . | . . . . Critical Strikes . | . . . . Melee Attacks . | . . . . Impact . | . . . . Slashing . | . . . . Piercing . | . . . . Sneak Attacks . | . . . . Combat Hostiles . | . . . . Follow-up Attacks . | . . . . Damage Inflicted 2863 | 24 1494 257 1088 Guns 544 | . 177 35 332 Cannons . | . . . . Explosions 2176 | . 1211 222 743 Melee . | . . . . Ramming 143 | 24 106 . 13 Kinetic 533 | . 166 35 332 Thermal 11 | . 11 . . Explosive 1983 | . 1211 222 550 Electromagnetic 193 | . . . 193 Impact . | . . . . Slashing . | . . . . Piercing . | . . . . Highest Corruption 1 | . . . 1 Average Corruption 1 | . . . 1 Corruption Purged . | . . . . Corruption Blocked . | . . . . Effects 1 | . . . 1 Matter Fused 1 | . . . 1 Overload Shots . | . . . . Overflow Damage 47 | . 3 2 42 Projectiles . | . . . . Explosions 47 | . 3 2 42 Melee . | . . . . Knockbacks 1 | 1 . . . Impact 1 | 1 . . . Kinetic . | . . . . Secondary . | . . . . Self-Inflicted Damage 252 | . 57 21 174 Shots 14 | . 2 2 10 Rammed 42 | 9 30 . 3 Targets Rammed 47 | 10 34 . 3 Kicked . | . . . . Crushed 5 | 1 4 . . Highest Temperature 85 | . 6 13 85 Average Temperature 20 | . 3 8 26 Received Heat Transfer 198 | . 36 48 114 Siege Activations . | . . . . Robots Corrupted . | . . . . Combat Hostiles . | . . . . Parts Fried . | . . . . Impact Corruptions . | . . . . Robots Melted . | . . . . Combat Hostiles . | . . . . Parts Melted . | . . . . Heat Transferred 25 | . 25 . . Parts Sabotaged . | . . . . Parts Stolen . | . . . . Parts Stripped . | . . . . Power Chain Reactions . | . . . . Alert | -11 -10 -10 -9 ------- Run | Yrd Mat Min Mat Peak Influence 417 | 10 417 181 312 Initial 75 | . 6 75 70 Average 163 | . 222 125 126 Maximum Alert Level 2 | . 2 . 1 Low Security (%) 67 | 100 43 100 84 Level 1 32 | . 54 . 15 Level 2 . | . 1 . . Level 3 . | . . . . Level 4 . | . . . . Level 5 . | . . . . High Security . | . . . . Max Security . | . . . . Squads Dispatched 2 | . 1 . 1 Investigation 1 | . 1 . . Extermination . | . . . . Reinforcement 1 | . . . 1 Assault . | . . . . Garrison . | . . . . Intercept . | . . . . Searches Triggered . | . . . . Construction Impeded . | . . . . Haulers Reinforced . | . . . . Active Scanning Responses . | . . . . Cargo Convoy Interrupts . | . . . . Stealth | -11 -10 -10 -9 --------- Run | Yrd Mat Min Mat Distress Signals . | . . . . Communications Jammed . | . . . . Distress Signals . | . . . . Times Spotted 37 | . 15 3 19 Peak Tracking Total 6 | . 3 2 6 Tactical Retreats . | . . . . Traps | -11 -10 -10 -9 ------- Run | Yrd Mat Min Mat Traps Triggered 1 | . . . 1 Indirectly . | . . . . Trap Hack Attempts . | . . . . Triggered . | . . . . Disarmed . | . . . . Reprogrammed . | . . . . Reused . | . . . . Traps Extracted . | . . . . Installed . | . . . . Triggered . | . . . . Machines | -11 -10 -10 -9 ---------- Run | Yrd Mat Min Mat Machines Disabled 9 | . 7 1 1 Max in Single Turn 2 | . 2 1 1 Machines Repaired . | . . . . Machines Dismantled . | . . . . Machines Sabotaged . | . . . . Overloaded Fab Kills . | . . . . Hacking | -11 -10 -10 -9 --------- Run | Yrd Mat Min Mat Machines Accessed 10 | . 7 . 3 Terminals 7 | . 5 . 2 Fabricators . | . . . . Repair Stations 1 | . 1 . . Recycling Units 1 | . 1 . . Scanalyzers 1 | . . . 1 Garrison Access . | . . . . Total Hacks 25 | . 18 . 7 Successful 16 | . 12 . 4 Failed 9 | . 6 . 3 Catastrophic 2 | . 1 . 1 Database Lockouts . | . . . . Manual . | . . . . Terminals 17 | . 12 . 5 Fabricators . | . . . . Repair Stations 2 | . 2 . . Recycling Units 4 | . 4 . . Scanalyzers 2 | . . . 2 Garrison Access . | . . . . Terminal Hacks 9 | . 7 . 2 Record 2 | . 2 . . Prototype ID Bank 1 | . 1 . . Locate Traps 2 | . 2 . . Transport Status 1 | . . . 1 Hauler Manifests 1 | . 1 . . Registered Components 1 | . . . 1 Zone Layout 1 | . 1 . . Fabricator Hacks . | . . . . Repair Station Hacks 2 | . 2 . . Scan Component 1 | . 1 . . Repair 1 | . 1 . . Recycling Unit Hacks 3 | . 3 . . Recycle Component 2 | . 2 . . Process 1 | . 1 . . Scanalyzer 2 | . . . 2 Insert Component 1 | . . . 1 Analyze 1 | . . . 1 Garrison Access Hacks . | . . . . Unauthorized Hacks . | . . . . Terminals . | . . . . Fabricators . | . . . . Repair Stations . | . . . . Recycling Units . | . . . . Scanalyzers . | . . . . Garrison Access . | . . . . Data Cores Recovered 2 | . 2 . . Used 1 | . 1 . . Hacking Detections 7 | . 5 . 2 Full Trace Events 1 | . 1 . . Feedback Events . | . . . . Feedback Blocked . | . . . . Robot Schematics Acquired . | . . . . Robots Built . | . . . . Authchips . | . . . . Time . | . . . . Total Robot Build Rating . | . . . . Part Schematics Acquired 1 | . . . 1 Parts Built . | . . . . Authchips . | . . . . Time . | . . . . Total Part Build Rating . | . . . . Parts Repaired 1 | . 1 . . Time 26 | . 26 . . Parts Recycled 2 | . 2 . . Recycled Matter 292 | . 292 . . Retrieved Matter . | . . . . Retrieved Components . | . . . . Parts Scanalyzed 1 | . . . 1 Part Schematics Acquired 1 | . . . 1 Parts Damaged . | . . . . Bothacking | -11 -10 -10 -9 ------------ Run | Yrd Mat Min Mat Used RIF Installer . | . . . . Robots Hacked . | . . . . Non-combat . | . . . . Combat . | . . . . Robot Hacks Applied . | . . . . Relay Couplers Released . | . . . . Fabnet Peak Effective % . | . . . . Robots Rewired . | . . . . Allies Hacked . | . . . . Hacks Repelled . | . . . . Allies | -11 -10 -10 -9 -------- Run | Yrd Mat Min Mat Total Allies . | . . . . Largest Group . | . . . . Highest-Rated Group . | . . . . Highest-Rated Ally . | . . . . Total Orders . | . . . . Ally Attacks . | . . . . Total Damage . | . . . . Kills . | . . . . Allies Corrupted . | . . . . Allies Melted . | . . . . Intel | -11 -10 -10 -9 ------- Run | Yrd Mat Min Mat Robot Analysis Total . | . . . . Derelict Logs Recovered . | . . . . Drone Launches . | . . . . Drone Recoveries . | . . . . Exploration | -11 -10 -10 -9 ------------- Run | Yrd Mat Min Mat Turns Passed 2914 | 254 1476 367 817 Spaces Moved 1607 | 142 810 209 446 Core 3 | 3 . . . Treads 1604 | 139 810 209 446 Legs . | . . . . Wheels . | . . . . Hover . | . . . . Flight . | . . . . Fastest Speed 50 | 50 160 160 160 Average Speed 159 | 157 160 160 160 Slowest Speed 160 | 160 160 160 160 Overloaded Moves . | . . . . Propulsion Burnouts . | . . . . Robots Hopped . | . . . . Cave-ins Triggered . | . . . . Exploration Rate (%) 41 | 9 77 42 38 Regions Visited 3 Branch Regions 1 Pre-discovered Areas . | . . . . Known Exits Taken . | . . . . Unknown Exits Taken 3 | 1 1 1 . Scrap Searched 1 | . . 1 . Spaces Dug . | . . . . Terrain Destroyed 242 | . 94 52 96 Melee . | . . . . Projectile . | . . . . AOE 242 | . 94 52 96 Terrain Rammed . | . . . . Walls Destroyed . | . . . . Machines Disabled . | . . . . Actions | -11 -10 -10 -9 --------- Run | Yrd Mat Min Mat Total 1813 | 163 927 228 495 Wait 51 | . 31 8 12 Move 1604 | 141 809 208 446 Hop . | . . . . Pick Up 21 | 6 13 1 1 Fast Attach 10 | 6 3 . 1 Attach 4 | . . . 4 Detach 2 | . 1 . 1 Swap 6 | . 2 2 2 Drop 13 | . 10 2 1 Fire 55 | . 24 7 24 Melee . | . . . . Ram . | . . . . Kick . | . . . . Crush 47 | 10 34 . 3 Escape Stasis . | . . . . Rewire . | . . . . Trap . | . . . . Miscellaneous . | . . . . Route ------- -11/Scrapyard -10/Materials (discovered 2 exits: *Mat / [*Min]) -10/Mines -9/Materials (discovered 1 exit: [*Min]) History --------- Turn | Location | Event 20 | -11/Scrapyard | Discovered new exit (range 14) 255 | -11/Scrapyard | Entered Materials 308 | -10/Materials | Build established: Mutant 407 | -10/Materials | Discovered new exit (range 7) 582 | -10/Materials | Discovered new exit (range 16) 1363 | -10/Materials | Repaired Grenade Launcher 1731 | -10/Materials | Entered Mines 1762 | -10/Mines | Joined a pair of Derelicts in attacking an 0b10 outpost 2053 | -10/Mines | Discovered new exit (range 6) 2098 | -10/Mines | Entered Materials 2098 | -9/Materials | Evolved 2 slots: Propulsion x1, Weapon x1 2403 | -9/Materials | Build established: Bomber 2503 | -9/Materials | Discovered new exit (range 15) 2915 | -9/Materials | Self-destructed Last Messages --------------- 02884_ G-34 Mercenary destroyed. 02884_ Door malfunctions. 02884_ G-34 Mercenary destroyed. 02888_ K-01 Serf collects debris. 02892_ U-05 Engineer lays Concrete. 02892_ K-01 Serf collects debris. 02893_ U-05 Engineer lays Concrete. 02896_ Acquired 36 matter. 02896_ K-01 Serf collects debris. 02897_ U-05 Engineer lays Concrete. 02897_ Acquired 36 matter. 02897_ U-05 Engineer lays Concrete. 02900_ U-05 Engineer builds a Door. 02902_ U-05 Engineer lays Concrete. 02904_ K-01 Serf collects debris. 02904_ U-05 Engineer builds a Wall. 02906_ U-05 Engineer lays Concrete. 02909_ K-01 Serf collects debris. 02909_ U-05 Engineer builds a Wall. 02910_ U-05 Engineer lays Concrete. Map ----- +----------------------------------------------------+ | ??????????# """ #???????# """ #?# #?# | | ??????????# """ #???????# """ #?# """T""" #?#!! | | ??????????# #???????# """ #?#############!! | | ??????????# *#???????# #???# !!! #= | | ??????????########???????########???? !!! # | | ?????????????????????????? ???????????? !!! # | | ?????????????????????????? ?????????????? #### | | ?????????????????????????? ????????????#+##+#????? | | ?????????????????????????? ????????????# #????? | | ?????????????????????????" "???????????# ###??? | | ?????????????????????????" "???????????# ###### | | ?????????????????????????" "???????????# | | ????????????????????????? ???????????# | | ????????????????????######/##??????????# | | ????????????????????? #??????????# = | | ?????????????????????? ????######## ##+### | | ???????????????????????? ????#!!!!]]# # | | ?????????????????????????# ###??#!!!!]]# ^^ # ]# | | ????????????????????######/ #### #^^ # # | | ????????????????????#! ## # # ==[# | | ????????????????????# [/* + =[ + | | ????????????????????# # = ####### =[ # | | ????????????????????# #= #???### # | | ????????????????????#####+## ## #????## [ # | | ?????????????# s###### ##### #????### ### | | ?????????????# ss @ #??# #????####### | | ?????????? sY #??# ??? = # | | ?????????????# #??# ## | | ?????????????# ##### #??# #? | | ?????????????###+#?????# #??# #? | | ??????????????????????? ??# ####+## ##? | | ??????????????????????? ??# #?????# ?? | | ??????????????????????+ T ? +?????# ?? | | ??????????????????????# #?#+##?????# ?? | | ??????????????????????# #??????????# ?? | | ??????????????????????### ###??????????# ?? | | ????????????????????????? ?????????????#+###+###?? | | ????????????????????????? ???????????????????????? | | ????????????????????????? ???????????????????????? | | ?????????????????????????????????????????????????? | | ?????????????????????????????????????????????????? | | ?????????????????????????????????????????????????? | | ?????????????????????????????????????????????????? | | ?????????????????????????????????????????????????? | | ?????????????????????????????????????????????????? | | | | | | | | | | | +----------------------------------------------------+ Best States ------------- Heat Dissipation 28 Energy Generation 18 Energy Capacity 250 Matter Stores 400 Matter Capacity 400 Sight Range 16 Terrain Scan Density 10 Evasion (%) 40 Recoil Reduction 3 Item Schematics ----------------- Field Recycling Unit | -9/Materials | Scanalyzed Robot Schematics ------------------ None Fabricated ------------ Nothing Alien Tech Used ----------------- None Achievements -------------- None Challenges ------------ None Game ------ Seed StormGatlingFrame Manual? 0 Play Time 00:27:27 Cumulative 9.5 hours Start 2024.04.09 @ 15:06:05 End 2024.04.09 @ 15:31:43 Sessions 1 Manual Loads 0 Difficulty Rogue Special Mode None Game No. 17 Rogue 17 Adventurer 0 Explorer 0 Win Type - Total 0 Types 0/0/0/0/0/0/0/0/0 Lore% 15 Gallery% 12 Achievement% 16 Wizard Run 0 Options --------- Layout 0 ASCII 0 Keyboard 1 Movement Numpad Keybinds 0 Fullscreen 1 Font 18/SmallcapsGlow Map View 76x50 Zoom Use 0% Tactical HUD 1 Map Filters NONE Filters NONE Steam 1 RUN: 5be5e9ae-f479-43e3-97ba-227c277a3f33